bitfinex-derivatives/quotes_BTCF0:USTF0_20250121
["timestamp","ask_amount","ask_price","bid_price","bid_amount"]
[1737444973087,0.55419745,102340.0,102330.0,0.01526117]
[1737444973490,0.55419745,102340.0,102320.0,0.0684]
[1737444973691,0.3608,102330.0,102320.0,0.107541]
[1737444973884,0.3608,102330.0,102320.0,0.20525927]
[1737444974085,0.3608,102330.0,102320.0,0.17715879]
[1737444974486,0.46659257,102330.0,102320.0,0.13801779]
[1737444974692,0.53349257,102330.0,102320.0,0.1376178]
[1737444974892,0.53349257,102330.0,102310.0,0.63674664]
[1737444974893,0.49435457,102330.0,102310.0,0.63674664]
[1737444975089,0.399941,102320.0,102310.0,0.59394]
[1737444975390,0.399941,102320.0,102310.0,0.73373918]
[1737444975592,0.399941,102320.0,102310.0,0.69166782]
[1737444975985,0.46659557,102320.0,102310.0,0.69166782]
[1737444976386,0.3608,102320.0,102310.0,0.73081282]
[1737444977293,0.3608,102320.0,102310.0,0.76506231]
[1737444977490,0.50589387,102320.0,102310.0,0.83016231]
[1737444977889,0.50589387,102320.0,102310.0,0.86833082]
[1737444978285,0.50589387,102320.0,102310.0,0.91114239]
[1737444979094,0.14509387,102320.0,102310.0,1.31475378]
[1737444979293,0.50589387,102320.0,102310.0,0.76974789]
[1737444979492,0.50589387,102320.0,102310.0,0.72693632]
[1737444980295,0.3608,102320.0,102310.0,0.79603632]
[1737444981196,0.399941,102320.0,102310.0,0.79603632]
[1737444981994,0.3608,102320.0,102310.0,0.79603632]
[1737444983383,0.74752539,102330.0,102310.0,1.22349089]
[1737444983587,0.74752539,102330.0,102320.0,0.039141]
[1737444983792,0.60243152,102330.0,102320.0,0.039141]
[1737444984190,0.53553152,102330.0,102320.0,0.1319839]
[1737444984387,0.53553152,102330.0,102320.0,0.17479287]
[1737444984594,0.53553152,102330.0,102320.0,0.21393387]
[1737444984991,0.53553152,102330.0,102320.0,0.21393334]
[1737444985297,0.60218609,102330.0,102320.0,0.21760009]
[1737444985498,0.60218609,102330.0,102320.0,0.1319839]
[1737444985893,0.64132409,102330.0,102320.0,0.1319839]
[1737444986099,0.64132409,102330.0,102320.0,0.0977326]
[1737444986997,0.612826,102330.0,102320.0,0.0977326]
[1737444987396,0.64034257,102330.0,102310.0,0.60134949]
[1737444987697,0.53229557,102320.0,102310.0,0.63397731]
[1737444988003,0.59809557,102320.0,102300.0,0.04281323]
[1737444988195,0.46667219,102310.0,102300.0,0.11988286]
[1737444988395,0.46667219,102310.0,102300.0,0.04281498]
[1737444988798,0.40001762,102310.0,102300.0,0.04281498]
[1737444989302,0.40001762,102310.0,102290.0,0.5348357]
[1737444989507,0.46667219,102310.0,102290.0,0.5157843]
[1737444989698,0.46667219,102310.0,102290.0,0.65635004]
[1737444990099,0.46667219,102310.0,102290.0,0.62209359]
[1737444990501,0.40001762,102310.0,102290.0,0.68874816]
[1737444990697,0.64140371,102310.0,102290.0,0.47848945]
[1737444994210,0.64140371,102310.0,102290.0,0.41048944]
[1737444994404,0.57474914,102310.0,102290.0,0.43432297]
[1737444994604,0.64140371,102310.0,102290.0,0.41048726]
[1737444994804,0.64140371,102310.0,102290.0,0.32006523]
[1737444994999,0.11705392,102300.0,102290.0,0.32006523]
[1737444995309,0.06705392,102300.0,102290.0,0.32006523]
[1737444995814,0.01715392,102300.0,102290.0,0.32006523]
[1737444996308,0.01715392,102300.0,102290.0,0.79033866]
[1737444996503,0.01715392,102300.0,102290.0,0.83791372]
[1737444997111,0.01715392,102300.0,102290.0,0.77125915]
[1737444997512,0.01715392,102300.0,102290.0,0.41045915]
[1737444997710,0.44460849,102300.0,102290.0,0.32373309]
[1737444998016,0.37795392,102300.0,102290.0,0.32373309]
[1737444998912,0.01715392,102300.0,102290.0,0.42954066]
[1737444999113,0.01715392,102300.0,102290.0,0.40911756]
[1737444999313,0.40001562,102310.0,102290.0,0.40911756]
[1737444999513,0.40001562,102310.0,102290.0,0.70326299]
[1737444999715,0.40001562,102310.0,102290.0,0.34246299]
[1737445000016,0.46667019,102310.0,102290.0,0.34246299]
[1737445000916,0.42745457,102300.0,102290.0,0.29488608]
[1737445002516,0.42745457,102300.0,102290.0,0.25573308]
[1737445002718,0.42745457,102300.0,102290.0,0.25206722]
[1737445002919,0.3608,102300.0,102290.0,0.25206722]
[1737445004114,0.3608,102300.0,102290.0,0.18406721]
[1737445004905,0.57384159,102310.0,102290.0,0.22688647]
[1737445005110,0.3608,102300.0,102290.0,0.18406721]
[1737445005611,0.3608,102300.0,102290.0,0.2230624]
[1737445005812,0.42745457,102300.0,102290.0,0.2230624]
[1737445006214,0.42745457,102300.0,102290.0,0.14965436]
[1737445006412,0.42745457,102300.0,102290.0,0.13674212]
[1737445006413,0.53325814,102300.0,102290.0,0.13674212]
[1737445006611,0.60375814,102300.0,102290.0,0.17099858]
[1737445006919,0.53710357,102300.0,102290.0,0.03899519]
[1737445007112,0.53710357,102300.0,102280.0,0.06767308]
[1737445007317,0.42745457,102290.0,102280.0,0.10193258]
[1737445007620,0.53710357,102300.0,102280.0,0.23884606]
[1737445007918,0.3608,102290.0,102280.0,0.30974606]
[1737445008618,0.53710357,102300.0,102280.0,0.35733103]
[1737445008920,0.3608,102300.0,102280.0,0.4239856]
[1737445009118,0.3608,102300.0,102280.0,0.46680528]
[1737445009719,0.42745457,102300.0,102280.0,0.40015071]
[1737445010324,0.3608,102300.0,102280.0,0.43852916]
[1737445010913,0.5071174,102300.0,102280.0,0.43852916]
[1737445011221,0.5071174,102300.0,102290.0,0.039153]
[1737445011906,0.5071174,102300.0,102290.0,0.13201868]
[1737445012112,0.67957554,102300.0,102290.0,0.09776126]
[1737445012308,0.61292097,102300.0,102290.0,0.09776126]
[1737445012607,0.61292097,102300.0,102280.0,0.17695153]
[1737445012811,0.3608,102290.0,102280.0,0.17695153]
[1737445013012,0.3608,102290.0,102280.0,0.31386501]
[1737445013207,0.61292097,102300.0,102280.0,0.31386501]
[1737445013208,0.57377197,102300.0,102280.0,0.27470801]
[1737445013413,0.57377197,102300.0,102290.0,0.039153]
[1737445013619,0.5071174,102300.0,102290.0,0.039153]
[1737445014014,0.5071174,102300.0,102290.0,0.13690948]
[1737445014214,0.5071174,102300.0,102290.0,0.06890947]
[1737445014510,0.57377197,102300.0,102290.0,0.10806247]
[1737445014713,0.57377197,102300.0,102290.0,0.06890947]
[1737445016423,0.5071174,102300.0,102290.0,0.06890947]
[1737445016810,0.5071174,102300.0,102290.0,0.14598934]
[1737445017623,0.5071174,102300.0,102290.0,0.18514234]
[1737445018723,0.5071174,102300.0,102290.0,0.15088462]
[1737445018919,0.1463174,102300.0,102290.0,0.15088462]
[1737445019119,0.0963174,102300.0,102290.0,0.50177475]
[1737445019324,0.53560114,102310.0,102290.0,0.59217008]
[1737445019526,0.53101418,102310.0,102300.0,0.108349]
[1737445019719,0.53101418,102310.0,102300.0,0.1854273]
[1737445019918,0.3608,102310.0,102300.0,0.27583454]
[1737445020119,0.3608,102320.0,102310.0,0.039145]
[1737445020319,0.3608,102320.0,102310.0,0.11621818]
[1737445020517,0.36088084,102320.0,102310.0,0.30200119]
[1737445020718,0.36088084,102320.0,102310.0,0.39975547]
[1737445021316,0.36088084,102320.0,102310.0,0.3521718]
[1737445021519,0.36088084,102320.0,102310.0,0.39976721]
[1737445021925,0.36088084,102320.0,102310.0,0.35694506]
[1737445022425,0.42753541,102320.0,102310.0,0.09774693]
[1737445022924,0.53497641,102320.0,102310.0,0.13199971]
[1737445023114,0.53497641,102320.0,102310.0,0.17482186]
[1737445023725,0.53497641,102320.0,102310.0,0.13199971]
[1737445023913,0.53497641,102320.0,102310.0,0.36338721]
[1737445024120,0.53497641,102320.0,102310.0,0.2953872]
[1737445024419,0.60427641,102320.0,102310.0,0.2953872]
[1737445025327,0.60427641,102320.0,102310.0,0.33407679]
[1737445025726,0.06673541,102320.0,102310.0,0.37322179]
[1737445026026,0.56451304,102350.0,102340.0,0.039134]
[1737445026226,0.20371304,102350.0,102340.0,0.46658857]
[1737445026432,0.20371304,102350.0,102340.0,0.43417286]
[1737445026622,0.20371304,102350.0,102340.0,0.59981023]
[1737445026929,0.2037807,102350.0,102340.0,0.56557137]
[1737445027130,0.63123527,102350.0,102340.0,0.16563737]
[1737445027722,0.5645807,102350.0,102340.0,0.16563737]
[1737445028323,0.6037107,102350.0,102340.0,0.09773737]
[1737445029024,0.63123527,102350.0,102320.0,0.24194]
[1737445029221,0.3608,102330.0,102320.0,0.46349494]
[1737445029532,0.3608,102330.0,102320.0,0.62785824]
[1737445029733,0.5636,102340.0,102320.0,0.98865824]
[1737445029929,0.241934,102340.0,102320.0,0.62785824]
[1737445030135,0.602734,102340.0,102320.0,0.62785824]
[1737445030426,0.471734,102340.0,102320.0,0.62785824]
[1737445030620,0.4326,102340.0,102330.0,0.06665457]
[1737445031025,0.4326,102340.0,102320.0,0.53014951]
[1737445031225,0.4326,102340.0,102330.0,0.09771827]
[1737445031433,0.4326,102340.0,102320.0,0.53014951]
[1737445031830,0.4326,102340.0,102330.0,0.09771827]
[1737445032029,0.4326,102340.0,102320.0,0.53014951]
[1737445032437,0.4326,102340.0,102330.0,0.09772305]
[1737445032637,0.4326,102340.0,102320.0,0.59654951]
[1737445032837,0.4326,102340.0,102330.0,0.09772305]
[1737445033239,0.471734,102340.0,102320.0,0.59654951]
[1737445033435,0.3608,102330.0,102320.0,0.59654951]
[1737445033939,0.471734,102340.0,102320.0,0.40471761]
[1737445034138,0.3608,102330.0,102320.0,0.33806304]
[1737445034335,0.3608,102330.0,102320.0,0.40471761]
[1737445037042,0.3608,102330.0,102320.0,0.29892304]
[1737445037243,0.399938,102330.0,102320.0,0.26676756]
[1737445037536,0.399938,102330.0,102320.0,0.23252304]
[1737445038733,0.3608,102330.0,102320.0,0.23252304]
[1737445039034,0.3608,102330.0,102320.0,0.33831861]
[1737445039235,0.3608,102330.0,102320.0,0.2703186]
[1737445040033,0.4996,102340.0,102330.0,0.039138]
[1737445040341,0.4996,102340.0,102330.0,0.10579257]
[1737445040543,0.1388,102340.0,102330.0,0.10579257]
[1737445040739,0.1388,102340.0,102330.0,0.20352039]
[1737445041143,0.36086766,102350.0,102330.0,0.59856359]
[1737445041345,0.36086766,102350.0,102330.0,0.66556359]
[1737445042838,0.36086766,102350.0,102340.0,0.10578857]
[1737445043147,0.36086766,102350.0,102340.0,0.17628857]
[1737445043545,0.36086766,102350.0,102340.0,0.27400207]
[1737445044138,0.42752223,102350.0,102320.0,0.03424061]
[1737445044336,0.46659357,102330.0,102310.0,0.25079029]
[1737445044542,0.399939,102330.0,102320.0,0.09770873]
[1737445044737,0.039141,102320.0,102310.0,0.21164629]
[1737445044933,0.53499557,102320.0,102310.0,0.1729567]
[1737445045940,0.53499557,102320.0,102310.0,0.28955495]
[1737445047339,0.58291614,102320.0,102310.0,0.28955495]
[1737445049037,0.58291614,102320.0,102300.0,0.34559758]
[1737445049350,0.53409957,102310.0,102300.0,0.27759757]
[1737445050452,0.53409957,102310.0,102290.0,0.039152]
[1737445050453,0.49495457,102310.0,102290.0,0.039152]
[1737445050638,0.53350357,102300.0,102290.0,0.039152]
[1737445050843,0.53350357,102300.0,102290.0,0.13689893]
[1737445052650,0.53350357,102300.0,102290.0,0.09774693]
[1737445053452,0.039153,102290.0,102250.0,0.54169541]
[1737445053653,0.46661857,102260.0,102250.0,0.58937835]
[1737445053839,0.46661857,102260.0,102250.0,0.28253942]
[1737445054540,0.46669091,102260.0,102250.0,0.28253942]
[1737445054745,0.46669091,102260.0,102250.0,0.28853942]
[1737445054941,0.46669091,102260.0,102250.0,0.29053942]
[1737445055351,0.46669091,102260.0,102250.0,0.28453942]
[1737445055650,0.46669091,102260.0,102250.0,0.28553942]
[1737445056746,0.46669091,102260.0,102250.0,0.14843942]
[1737445058141,0.039172,102240.0,102230.0,0.04291274]
[1737445058454,0.039172,102240.0,102230.0,0.14070746]
[1737445058455,0.89408114,102240.0,102230.0,0.14070746]
[1737445058751,0.82742657,102240.0,102230.0,0.14070746]
[1737445059153,0.89408114,102240.0,102230.0,0.16153319]
[1737445059449,0.89408114,102240.0,102230.0,0.16253319]
[1737445059853,0.82742657,102240.0,102230.0,0.16253319]
[1737445060149,0.78825457,102240.0,102230.0,0.20170919]
[1737445060549,0.3608,102250.0,102240.0,0.03917]
[1737445060854,0.06665457,102250.0,102240.0,0.47147]
[1737445061155,0.46669191,102260.0,102240.0,0.63617429]
[1737445061454,0.06665457,102250.0,102240.0,0.63617429]
[1737445061650,0.06765457,102250.0,102240.0,0.63617429]
[1737445061855,0.06865457,102250.0,102240.0,0.70267429]
[1737445062960,0.46669191,102260.0,102240.0,0.70267429]
[1737445063249,0.01665457,102250.0,102240.0,0.70267429]
[1737445063453,0.67169762,102260.0,102240.0,0.70267429]
[1737445063642,0.60504305,102260.0,102240.0,0.76932886]
[1737445063847,0.24324305,102260.0,102240.0,0.76932886]
[1737445064048,0.001,102250.0,102240.0,0.76932886]
[1737445064248,0.001,102250.0,102240.0,0.70132885]
[1737445064448,0.67069762,102260.0,102240.0,0.63117529]
[1737445065049,0.67169762,102260.0,102240.0,0.63117529]
[1737445065450,0.31089762,102260.0,102240.0,0.63117529]
[1737445065649,0.24424305,102260.0,102240.0,0.69782986]
[1737445065851,0.20507805,102260.0,102250.0,0.46662257]
[1737445066049,0.20507805,102260.0,102250.0,0.10582257]
[1737445066357,0.20507805,102260.0,102250.0,0.46662257]
[1737445066652,0.20507805,102260.0,102250.0,0.49776751]
[1737445067059,7.234e-05,102260.0,102250.0,0.49776751]
[1737445067557,7.234e-05,102260.0,102250.0,0.56886751]
[1737445069250,7.234e-05,102260.0,102250.0,0.5008675]
[1737445069559,7.234e-05,102260.0,102250.0,0.5400355]
[1737445071757,7.234e-05,102260.0,102250.0,0.58818926]
[1737445073163,0.06672691,102260.0,102250.0,0.47792126]
[1737445073458,0.10589091,102260.0,102250.0,0.47792126]
[1737445073652,0.03923634,102260.0,102250.0,0.50675327]
[1737445073854,0.03923634,102260.0,102250.0,0.14595327]
[1737445074156,0.03923634,102260.0,102250.0,0.07795326]
[1737445075758,0.24324205,102260.0,102250.0,0.07795326]
[1737445078968,0.18538799,102260.0,102250.0,0.07795326]
[1737445079169,0.18538799,102260.0,102250.0,0.00995325]
[1737445079471,0.18538799,102260.0,102250.0,0.1406345]
[1737445080464,0.14622399,102260.0,102250.0,0.60725707]
[1737445080669,0.09922399,102260.0,102250.0,0.68436713]
[1737445081666,0.09929239,102260.0,102250.0,0.73207416]
[1737445083267,0.09929239,102260.0,102250.0,0.32356713]
[1737445084077,0.09929239,102260.0,102250.0,0.57854456]
[1737445084268,0.09929239,102260.0,102250.0,0.51054455]
[1737445085367,0.04929239,102260.0,102250.0,0.51054455]
[1737445086177,0.17525719,102260.0,102250.0,0.43343449]
[1737445087376,0.17525719,102260.0,102250.0,0.51054233]
[1737445087568,0.17525719,102260.0,102250.0,0.15473713]
[1737445087882,0.12525719,102260.0,102250.0,0.53925706]
[1737445088182,0.07296712,102290.0,102270.0,0.03916]
[1737445088369,0.13866712,102290.0,102280.0,0.42745457]
[1737445088569,0.13866712,102290.0,102280.0,0.41525476]
[1737445088765,0.13866712,102290.0,102280.0,0.09779472]
[1737445089172,0.17782012,102290.0,102280.0,0.02979471]
[1737445089377,0.53862012,102290.0,102280.0,0.02979471]
[1737445089678,0.74233316,102290.0,102280.0,0.02979471]
[1737445091085,0.74233316,102290.0,102280.0,0.04509083]
[1737445091381,0.74233316,102290.0,102280.0,0.02979471]
[1737445091577,0.80898773,102290.0,102280.0,0.02979471]
[1737445091778,0.039162,102270.0,102250.0,0.039168]
[1737445091980,0.1334,102260.0,102250.0,0.16430391]
[1737445092278,0.172564,102260.0,102250.0,0.09239267]
[1737445092474,0.172564,102260.0,102250.0,0.19018261]
[1737445092875,0.1334,102260.0,102250.0,0.19018497]
[1737445093279,0.1334,102260.0,102250.0,0.65680754]
[1737445093581,0.40142112,102290.0,102260.0,0.039162]
[1737445093783,0.47042112,102290.0,102270.0,0.42745457]
[1737445093983,0.47042112,102290.0,102280.0,0.06665457]
[1737445094174,0.10962112,102290.0,102280.0,0.09105405]
[1737445094670,0.10962112,102290.0,102280.0,0.231655]
[1737445094671,0.07046712,102290.0,102280.0,0.231655]
[1737445094876,0.20371304,102300.0,102290.0,0.039153]
[1737445095074,0.20371304,102300.0,102290.0,0.46660757]
[1737445095271,0.20371304,102300.0,102290.0,0.70482393]
[1737445095487,0.20371304,102300.0,102290.0,0.80258997]
[1737445095877,0.20371304,102300.0,102290.0,0.75976308]
[1737445096076,0.20371304,102300.0,102290.0,0.72550157]
[1737445096476,0.20371304,102300.0,102290.0,0.67750374]
[1737445096678,0.20371304,102300.0,102290.0,0.63467361]
[1737445096890,0.20371304,102300.0,102290.0,0.71175831]
[1737445097186,0.11706538,102300.0,102290.0,0.71175831]
[1737445099076,0.11706538,102300.0,102290.0,0.64145831]
[1737445099289,0.11706538,102300.0,102290.0,0.24150531]
[1737445099492,0.11706538,102300.0,102290.0,0.28065831]
[1737445099688,0.11706538,102300.0,102290.0,0.13202637]
[1737445099888,0.11706538,102300.0,102290.0,0.09776604]
[1737445100580,0.11706538,102300.0,102290.0,0.14699663]
[1737445100793,0.11706538,102300.0,102290.0,0.50779663]
[1737445100986,0.11706538,102300.0,102290.0,0.14699663]
[1737445101294,0.08767807,102300.0,102290.0,0.50779663]
[1737445103186,0.08767807,102300.0,102290.0,0.64786141]
[1737445104282,0.08767807,102300.0,102290.0,0.5798614]
[1737445104490,0.08767807,102300.0,102290.0,0.62268363]
[1737445104681,0.08767807,102300.0,102290.0,0.66550443]
[1737445105986,0.08767807,102300.0,102290.0,0.6226822]
[1737445106290,0.07238031,102310.0,102300.0,0.039149]
[1737445106592,0.3608,102330.0,102310.0,0.039142]
[1737445106799,0.3608,102330.0,102320.0,0.06665457]
[1737445107093,0.3608,102330.0,102320.0,0.04954964]
[1737445107299,0.3608,102330.0,102320.0,0.10091178]
[1737445107486,1.61784992,102340.0,102320.0,0.20352139]
[1737445107791,1.61784992,102340.0,102320.0,0.56432139]
[1737445107792,1.25588992,102340.0,102320.0,0.56432139]
[1737445107994,1.25588992,102340.0,102330.0,0.46659257]
[1737445108691,1.02241165,102340.0,102330.0,0.09772305]
[1737445108887,1.02241165,102340.0,102330.0,0.16437762]
[1737445109089,1.02241165,102340.0,102330.0,0.13551561]
[1737445109397,1.02241165,102340.0,102330.0,0.42966104]
[1737445110888,1.02241165,102340.0,102330.0,0.39052304]
[1737445111596,1.02241165,102340.0,102330.0,0.43858015]
[1737445112191,1.02241165,102340.0,102330.0,0.07778015]
[1737445112399,1.48900022,102340.0,102330.0,0.07778015]
[1737445112591,1.42234565,102340.0,102330.0,0.07778015]
[1737445112791,1.06154565,102340.0,102330.0,0.07778015]
[1737445113389,0.245934,102340.0,102330.0,0.07778015]
[1737445113892,0.606734,102340.0,102330.0,0.07778015]
[1737445114193,0.245934,102340.0,102330.0,0.00978014]
[1737445114395,0.245934,102340.0,102330.0,0.09771827]
[1737445114594,0.606734,102340.0,102330.0,0.09771827]
[1737445115993,0.039138,102330.0,102320.0,0.04921034]
[1737445116192,0.46659257,102330.0,102310.0,0.399944]
[1737445116498,0.46659257,102330.0,102320.0,0.09771827]
[1737445116698,0.46659257,102330.0,102310.0,0.399944]
[1737445116899,0.039138,102330.0,102320.0,0.09771827]
[1737445117086,0.399938,102330.0,102310.0,0.399944]
[1737445117287,0.399938,102330.0,102310.0,0.44832757]
[1737445117596,0.399938,102330.0,102320.0,0.09772782]
[1737445117797,0.039138,102330.0,102310.0,0.51498214]
[1737445117998,0.399938,102330.0,102320.0,0.09772782]
[1737445118190,0.5028,102340.0,102320.0,0.09772782]
[1737445118394,0.541935,102340.0,102320.0,0.46659457]
[1737445118595,0.541935,102340.0,102320.0,0.4976726]
[1737445118791,0.60858957,102340.0,102320.0,0.4976726]
[1737445119099,0.60858957,102340.0,102320.0,0.1368726]
[1737445120794,0.541935,102340.0,102320.0,0.1368726]
[1737445121094,0.60858957,102340.0,102320.0,0.1368726]
[1737445121302,0.60858957,102340.0,102320.0,0.0977326]
[1737445121303,0.399938,102330.0,102320.0,0.0977326]
[1737445123299,0.46659257,102330.0,102320.0,0.0977326]
[1737445124185,0.46659257,102330.0,102320.0,0.02973259]
[1737445124393,0.039141,102320.0,102310.0,0.08752757]
[1737445124587,0.46659557,102320.0,102310.0,0.04838357]
[1737445124793,0.039145,102310.0,102300.0,0.0001182]
[1737445124993,0.60649957,102310.0,102300.0,0.03437054]
[1737445125188,0.60649957,102310.0,102280.0,0.56075551]
[1737445125189,0.039149,102300.0,102280.0,0.56075551]
[1737445125393,0.42745457,102290.0,102280.0,0.56075551]
[1737445125595,0.3608,102290.0,102280.0,0.56075551]
[1737445125898,0.3608,102290.0,102280.0,0.72515701]
[1737445126102,0.3608,102290.0,102280.0,0.77330519]
[1737445126297,0.3608,102290.0,102280.0,0.82286227]
[1737445126503,0.3608,102290.0,102280.0,0.78860058]
[1737445126903,0.3608,102290.0,102280.0,0.72194601]
[1737445127905,0.53995142,102310.0,102290.0,0.039151]
[1737445128232,0.53995142,102310.0,102290.0,0.29025998]
[1737445128413,0.53995142,102310.0,102290.0,0.23581359]
[1737445128618,0.039149,102300.0,102290.0,0.26691073]
[1737445128822,0.3597197,102300.0,102290.0,0.19811073]
[1737445129222,0.3597197,102300.0,102290.0,0.13011072]
[1737445129730,0.3597197,102300.0,102290.0,0.09775171]
[1737445129929,0.7205197,102300.0,102290.0,0.09775171]
[1737445130227,0.78717427,102300.0,102290.0,0.09775171]
[1737445131631,0.7205197,102300.0,102290.0,0.09775171]
[1737445131827,0.7887197,102300.0,102290.0,0.09775171]
[1737445132222,0.468149,102300.0,102290.0,0.09775171]
[1737445133421,0.468149,102300.0,102290.0,0.1130467]
[1737445134032,0.468149,102300.0,102290.0,0.09775171]
[1737445134228,0.468149,102300.0,102290.0,0.04504674]
[1737445136039,0.468149,102300.0,102290.0,0.04504669]
[1737445139236,0.468149,102300.0,102280.0,0.42515186]
[1737445139437,0.107349,102300.0,102290.0,0.09775648]
[1737445139837,0.107349,102300.0,102280.0,0.06435186]
[1737445140036,0.107349,102300.0,102290.0,0.09775648]
[1737445140237,0.107349,102300.0,102280.0,0.0986102]
[1737445140438,0.468149,102300.0,102280.0,0.06435186]
[1737445140737,0.107349,102300.0,102290.0,0.09776126]
[1737445140938,0.107349,102300.0,102280.0,0.09861145]
[1737445141138,0.107349,102300.0,102290.0,0.09776126]
[1737445141530,0.107349,102300.0,102280.0,0.45941145]
[1737445141840,0.107349,102300.0,102290.0,0.09776126]
[1737445142135,0.107349,102300.0,102280.0,0.45941145]
[1737445142338,0.107349,102300.0,102290.0,0.09776126]
[1737445142637,0.107349,102300.0,102280.0,0.45941145]
[1737445142836,0.107349,102300.0,102290.0,0.09775648]
[1737445143138,0.107349,102300.0,102280.0,0.45941145]
[1737445143643,0.468149,102300.0,102280.0,0.09861145]
[1737445143833,0.107349,102300.0,102280.0,0.09861145]
[1737445144044,0.468149,102300.0,102280.0,0.23919385]
[1737445144344,0.507301,102300.0,102280.0,0.25317581]
[1737445144641,0.468149,102300.0,102280.0,0.25317581]
[1737445144834,0.507301,102300.0,102280.0,0.25317581]
[1737445145029,0.468149,102300.0,102280.0,0.25317581]
[1737445145742,0.468149,102300.0,102280.0,0.66336134]
[1737445146534,0.107349,102300.0,102280.0,0.66336134]
[1737445146734,0.039149,102300.0,102290.0,0.42745457]
[1737445147043,0.82137612,102310.0,102290.0,0.428]
[1737445147436,0.86052212,102310.0,102290.0,0.60773679]
[1737445147742,0.86052212,102310.0,102290.0,0.65055736]
[1737445149037,0.89967012,102310.0,102290.0,0.65055736]
[1737445149237,0.86052212,102310.0,102290.0,0.28975736]
[1737445149737,0.86052212,102310.0,102290.0,0.24693483]
[1737445149938,0.92717669,102310.0,102290.0,0.24693483]
[1737445150439,0.92717669,102310.0,102290.0,0.28975556]
[1737445150640,0.75232194,102310.0,102290.0,0.28975556]
[1737445151241,0.68566737,102310.0,102290.0,0.28975556]
[1737445152647,0.72481537,102310.0,102290.0,0.28975556]
[1737445152850,0.68566737,102310.0,102290.0,0.28975556]
[1737445153841,0.68566737,102310.0,102290.0,0.33790281]
[1737445154242,0.68566737,102310.0,102290.0,0.37175912]
[1737445154745,0.25536737,102310.0,102290.0,0.79921369]
[1737445155138,0.25536737,102310.0,102290.0,0.80035912]
[1737445155341,0.61616737,102310.0,102290.0,0.80035912]
[1737445155643,0.79102212,102310.0,102290.0,0.80035912]
[1737445155947,0.79102212,102310.0,102290.0,0.75221187]
[1737445156449,0.79102212,102310.0,102290.0,0.80040093]
[1737445158945,0.89682469,102310.0,102290.0,0.73260093]
[1737445159147,0.0634,102300.0,102290.0,0.66460092]
[1737445159642,0.0134,102300.0,102290.0,0.66460092]
[1737445159842,0.0026,102300.0,102290.0,0.66460092]
[1737445160038,0.14831595,102300.0,102290.0,0.89574055]
[1737445161046,0.61491952,102300.0,102290.0,0.42818755]
[1737445161248,0.61491952,102300.0,102290.0,0.38536682]
[1737445161450,0.67861952,102300.0,102290.0,0.30292144]
[1737445161753,0.67861952,102300.0,102290.0,0.26010087]
[1737445162849,0.61196495,102300.0,102290.0,0.30292647]
[1737445163042,0.61196495,102300.0,102290.0,0.29436118]
[1737445163239,0.67861952,102300.0,102290.0,0.29436118]
[1737445163444,0.70775832,102300.0,102290.0,0.10604673]
[1737445164152,0.70775832,102300.0,102290.0,0.03804672]
[1737445164355,0.74691032,102300.0,102280.0,0.31967916]
[1737445164647,0.70775832,102300.0,102280.0,0.4107799]
[1737445165060,0.70775832,102300.0,102280.0,0.50853638]
[1737445166247,0.74691132,102300.0,102280.0,0.50853638]
[1737445166448,0.70775832,102300.0,102280.0,0.50853638]
[1737445166650,0.3608,102290.0,102280.0,0.50853638]
[1737445166855,0.57301641,102290.0,102280.0,0.50853638]
[1737445167360,0.61216941,102290.0,102280.0,0.46938238]
[1737445169255,0.61216941,102290.0,102280.0,0.40138237]
[1737445169658,0.61216941,102290.0,102280.0,0.45057728]
[1737445170456,0.67882398,102290.0,102280.0,0.45057728]
[1737445170956,0.31802398,102290.0,102280.0,0.45057728]
[1737445171148,0.25136941,102290.0,102280.0,0.45057728]
[1737445171854,0.67882398,102290.0,102280.0,0.45057728]
[1737445172160,0.67882398,102290.0,102280.0,0.45057792]
[1737445172356,0.67882398,102290.0,102280.0,0.40230163]
[1737445174259,0.67882398,102290.0,102280.0,0.38255046]
[1737445174461,0.67882398,102290.0,102280.0,0.42537786]
[1737445174660,0.67882398,102290.0,102280.0,0.37712902]
[1737445175356,0.67882398,102290.0,102280.0,0.33430393]
[1737445175661,0.67882398,102290.0,102280.0,0.34959981]
[1737445175862,0.57301641,102290.0,102280.0,0.38875681]
[1737445176251,0.54242552,102290.0,102280.0,0.4798032]
[1737445176652,0.71728027,102290.0,102280.0,0.31998218]
[1737445176856,0.68227116,102290.0,102280.0,0.31998218]
[1737445178659,0.30047116,102290.0,102280.0,0.74743675]
[1737445178852,0.28086862,102290.0,102280.0,0.81243675]
[1737445179053,0.23086862,102290.0,102280.0,0.81243675]
[1737445179259,0.23086862,102290.0,102280.0,0.74443674]
[1737445179965,0.20186862,102290.0,102280.0,0.74443674]
[1737445180959,0.11719,102300.0,102290.0,0.039151]
[1737445181156,0.11719,102300.0,102290.0,0.61589739]
[1737445181562,0.11719,102300.0,102290.0,0.75648127]
[1737445181760,0.18384457,102300.0,102290.0,0.75648127]
[1737445181965,0.58379357,102300.0,102290.0,0.23163027]
[1737445182263,0.77684814,102300.0,102290.0,0.14058388]
[1737445182466,0.77684814,102300.0,102290.0,0.09775648]
[1737445182664,0.71019357,102300.0,102290.0,0.09775648]
[1737445182859,0.77684814,102300.0,102290.0,0.09775648]
[1737445183465,0.77684814,102300.0,102280.0,0.33965579]
[1737445183764,0.52920757,102290.0,102280.0,0.38248324]
[1737445184265,0.52920757,102290.0,102280.0,0.35731268]
[1737445184764,0.52920757,102290.0,102280.0,0.31448523]
[1737445184953,0.52920757,102290.0,102280.0,0.04282945]
[1737445186854,0.52920757,102290.0,102280.0,0.17975249]
[1737445186855,0.462553,102290.0,102280.0,0.17975249]
[1737445187163,0.52920757,102290.0,102280.0,0.17975249]
[1737445187364,0.52920757,102290.0,102280.0,0.22975891]
[1737445188667,0.54920757,102290.0,102280.0,0.22975891]
[1737445188962,0.54920757,102290.0,102280.0,0.19060191]
[1737445189165,0.72406232,102290.0,102280.0,0.1226019]
[1737445190161,0.72406232,102290.0,102280.0,0.16542886]
[1737445191769,0.72406232,102290.0,102280.0,0.07259548]
[1737445191972,0.72406232,102290.0,102270.0,0.70068467]
[1737445192269,0.03916,102270.0,102260.0,0.27174819]
[1737445192460,0.53326914,102270.0,102260.0,0.36281502]
[1737445192865,0.53326914,102270.0,102260.0,0.31458067]
[1737445193265,0.53326914,102270.0,102260.0,0.27174819]
[1737445193458,0.46661457,102270.0,102260.0,0.27174819]
[1737445193671,0.53326914,102270.0,102260.0,0.27174819]
[1737445193968,0.039164,102260.0,102250.0,0.34606839]
[1737445194169,0.46661857,102260.0,102250.0,0.27806838]
[1737445194367,0.46661857,102260.0,102250.0,0.37585354]
[1737445195865,0.46661857,102260.0,102250.0,0.41502154]
[1737445196670,0.46661857,102260.0,102250.0,0.48022154]
[1737445197069,0.64147332,102260.0,102250.0,0.20215316]
[1737445197871,0.57481875,102260.0,102250.0,0.20215316]